fUST/lending_fUST_20250917
["ID","MTS","AMOUNT","RATE_DAILY","PERIOD"]
[385902201,1758121838991,-480.0,0.00023524,3]
[385902202,1758121839001,-480.0,0.00023524,3]
[385902203,1758121839010,-480.0,0.00023524,3]
[385902204,1758121839019,-480.0,0.00023524,3]
[385902205,1758121839029,-480.0,0.00023524,3]
[385902206,1758121839038,-480.0,0.00023524,3]
[385902207,1758121839047,-382.77071286,0.00023524,3]
[385902208,1758121839057,-480.0,0.00023524,3]
[385902209,1758121839067,-480.0,0.00023524,3]
[385902210,1758121839076,-480.0,0.00023525,3]
[385902211,1758121839085,-480.0,0.00023525,3]
[385902212,1758121839094,-480.0,0.00023525,3]
[385902213,1758121839103,-480.0,0.00023525,3]
[385902214,1758121839112,-480.0,0.00023525,3]
[385902215,1758121839121,-480.0,0.00023525,3]
[385902216,1758121839131,-480.0,0.00023525,3]
[385902217,1758121839140,-480.0,0.00023525,3]
[385902218,1758121839150,-480.0,0.00023525,3]
[385902219,1758121839160,-480.0,0.00023525,3]
[385902220,1758121839169,-480.0,0.00023525,3]
[385902221,1758121839178,-480.0,0.00023525,3]
[385902222,1758121839188,-471.31871646,0.00023525,3]
[385902223,1758121839198,-480.0,0.00023525,3]
[385902224,1758121839207,-480.0,0.00023525,3]
[385902225,1758121839217,-480.0,0.00023525,3]
[385902226,1758121839227,-480.0,0.00023525,3]
[385902227,1758121839237,-480.0,0.00023525,3]
[385902228,1758121839247,-480.0,0.00023525,3]
[385902229,1758121839258,-480.0,0.00023525,3]
[385902230,1758121839267,-480.0,0.00023525,3]
[385902231,1758121839277,-480.0,0.00023525,3]
[385902232,1758121839287,-480.0,0.00023525,3]
[385902233,1758121839296,-480.0,0.00023535,3]
[385902234,1758121839306,-199.15391318,0.00023537,2]
[385902235,1758121839315,-52.78366937,0.00023537,2]
[385902236,1758121839805,-447.21633063,0.00023537,2]
[385902237,1758121839814,-230.69160301,0.00023537,2]
[385902238,1758121839824,-500.0,0.00023537,2]
[385902239,1758121839833,-500.0,0.00023537,2]
[385902240,1758121839843,-235.24117297,0.00023537,2]
[385902242,1758121839852,-500.0,0.00023537,2]
[385902244,1758121839861,-500.0,0.00023537,2]
[385902246,1758121839870,-378.47204709,0.00023537,2]
[385902250,1758121840074,-121.52795291,0.00023537,2]
[385902251,1758121840083,-372.82317199,0.00023537,2]
[385902252,1758121840093,-500.0,0.00023537,2]
[385902253,1758121840102,-500.0,0.00023537,2]
[385902254,1758121840115,-500.0,0.00023537,2]
[385902255,1758121840127,-500.0,0.00023537,2]
[385902256,1758121840140,-500.0,0.00023537,2]
[385902257,1758121840152,-500.0,0.00023537,2]
[385902258,1758121840165,-500.0,0.00023537,2]
[385902259,1758121840176,-500.0,0.00023537,2]
[385902260,1758121840186,-207.08853447,0.00023537,2]
[385902261,1758121840200,-292.91146553,0.00023537,2]
[385902262,1758121840213,-500.0,0.00023537,2]
[385902263,1758121840224,-337.92540867,0.00023537,2]
[385902264,1758121840235,-449.1831258,0.00023537,2]
[385902265,1758121840251,-50.8168742,0.00023537,2]
[385902266,1758121840262,-500.0,0.00023537,2]
[385902267,1758121840274,-500.0,0.00023537,2]
[385902268,1758121840284,-634.57330494,0.00023537,2]
[385902269,1758121840295,-500.0,0.00023537,2]
[385902270,1758121840307,-318.00132097,0.00023537,2]
[385902271,1758121840319,-500.0,0.00023537,2]
[385902272,1758121840331,-500.0,0.00023537,2]
[385902273,1758121840344,-500.0,0.00023537,2]
[385902274,1758121840356,-500.0,0.00023537,2]
[385902275,1758121840367,-500.0,0.00023537,2]
[385902276,1758121840378,-500.0,0.00023537,2]
[385902277,1758121840390,-174.85503594,0.00023537,2]
[385902278,1758121840404,-325.14496406,0.00023537,2]
[385902279,1758121840415,-480.0,0.00023539,3]
[385902280,1758121840426,-480.0,0.00023539,3]
[385902281,1758121840437,-485.36505383,0.00023539,3]
[385902282,1758121840448,-480.0,0.00023539,3]
[385902283,1758121840460,-480.0,0.00023539,3]
[385902284,1758121840471,-480.0,0.00023539,3]
[385902285,1758121840483,-480.0,0.00023539,3]
[385902286,1758121840495,-480.0,0.00023539,3]
[385902287,1758121840505,-480.0,0.00023539,3]
[385902288,1758121840515,-480.0,0.00023539,3]
[385902289,1758121840526,-480.0,0.00023539,3]
[385902290,1758121840537,-480.0,0.00023539,3]
[385902291,1758121840548,-480.0,0.00023539,3]
[385902292,1758121840559,-480.0,0.00023539,3]
[385902293,1758121840571,-480.0,0.0002354,3]
[385902294,1758121840581,-480.0,0.0002354,3]
[385902295,1758121840593,-1087.11,0.0002354,3]
[385902296,1758121840605,-480.0,0.0002354,3]
[385902297,1758121840615,-480.0,0.0002354,3]
[385902298,1758121840626,-480.0,0.00023552,3]
[385902299,1758121840637,-480.0,0.00023552,3]
[385902300,1758121840648,-516.46,0.00023552,3]
[385902301,1758121840659,-558.57,0.00023552,3]
[385902302,1758121840672,-208.79,0.00023552,3]
[385902303,1758121840683,-995.19,0.00023552,3]
[385902304,1758121840695,-480.0,0.00023552,3]
[385902305,1758121840705,-480.0,0.00023552,3]
[385902306,1758121840715,-480.0,0.00023552,3]
[385902307,1758121840727,-193.11,0.00023552,3]
[385902308,1758121840737,-480.0,0.00023552,3]
[385902309,1758121840747,-528.07,0.00023552,3]
[385902310,1758121840757,-480.0,0.00023552,3]
[385902311,1758121840768,-583.77,0.00023552,3]
[385902312,1758121840780,-480.0,0.00023552,3]
[385902313,1758121840792,-480.0,0.00023552,3]
[385902314,1758121840804,-521.63,0.00023552,3]
[385902315,1758121840817,-543.33,0.00023552,3]
[385902316,1758121840827,-125.28147636,0.00023552,3]
[385902317,1758121840840,-354.71852364,0.00023552,3]
[385902318,1758121840851,-480.0,0.00023552,3]
[385902319,1758121840861,-480.0,0.00023553,3]
[385902320,1758121840872,-480.0,0.00023553,3]
[385902321,1758121840884,-480.0,0.00023553,3]
[385902322,1758121840896,-480.0,0.00023553,3]
[385902323,1758121840907,-480.0,0.00023553,3]
[385902324,1758121840918,-480.0,0.00023553,3]
[385902325,1758121840928,-2400.70041723,0.00023553,3]
[385902326,1758121840941,-1863.06958277,0.00023553,3]
[385902327,1758121840952,-179.1,0.00023553,3]
[385902328,1758121840963,-480.0,0.00023553,3]
[385902329,1758121840974,-480.0,0.00023553,3]
[385902330,1758121840985,-480.0,0.00023553,3]
[385902331,1758121840995,-478.24899379,0.00023553,3]
[385902332,1758121841006,-480.0,0.00023553,3]
[385902333,1758121841017,-480.0,0.00023553,3]
[385902334,1758121841027,-480.0,0.00023553,3]
[385902335,1758121841038,-480.0,0.00023554,3]
[385902336,1758121841048,-4023.79,0.00023554,2]
[385902337,1758121841058,-480.0,0.00023554,3]
[385902338,1758121841068,-224.04578936,0.00023554,3]
[385902339,1758121841081,-255.95421064,0.00023554,3]
[385902340,1758121841093,-480.0,0.00023555,3]
[385902341,1758121841103,-480.0,0.00023555,3]
[385902342,1758121841114,-480.0,0.00023555,3]
[385902343,1758121841124,-480.0,0.00023555,3]
[385902344,1758121841135,-590.24,0.00023555,3]
[385902345,1758121841145,-480.0,0.00023555,3]
[385902346,1758121841156,-480.0,0.00023555,3]
[385902347,1758121841166,-480.0,0.00023555,3]
[385902348,1758121841177,-480.0,0.00023555,3]
[385902349,1758121841188,-480.0,0.00023555,3]
[385902350,1758121841198,-480.0,0.00023555,3]
[385902351,1758121841209,-497.51,0.00023555,3]
[385902352,1758121841219,-480.0,0.00023555,3]
[385902353,1758121841230,-480.0,0.00023555,3]
[385902354,1758121841241,-480.0,0.00023555,3]
[385902355,1758121841252,-480.0,0.00023555,3]
[385902356,1758121841262,-480.0,0.00023555,3]
[385902357,1758121841273,-480.0,0.00023555,3]
[385902358,1758121841285,-480.0,0.00023555,3]
[385902359,1758121841295,-480.0,0.00023555,3]
[385902360,1758121841307,-500.0,0.00023555,3]
[385902361,1758121841317,-480.0,0.00023555,3]
[385902362,1758121841327,-480.0,0.00023555,3]
[385902363,1758121841337,-480.0,0.00023555,3]
[385902364,1758121841347,-489.87858461,0.00023555,3]
[385902365,1758121841356,-480.0,0.00023555,3]
[385902366,1758121841366,-482.90839945,0.00023555,3]
[385902367,1758121841376,-480.0,0.00023555,3]
[385902368,1758121841385,-480.0,0.00023555,3]
[385902369,1758121841394,-480.0,0.00023555,3]
[385902370,1758121841404,-485.036953,0.00023555,3]
[385902371,1758121841414,-480.0,0.00023555,3]
[385902372,1758121841543,-490.46469285,0.00023555,3]
[385902373,1758121841556,-480.0,0.00023555,3]
[385902374,1758121841566,-480.0,0.00023555,3]
[385902375,1758121841575,-480.0,0.00023555,3]
[385902376,1758121841584,-480.0,0.00023555,3]
[385902377,1758121841593,-480.0,0.00023555,3]
[385902378,1758121841603,-480.0,0.00023555,3]
[385902379,1758121841612,-485.40139364,0.00023555,3]
[385902380,1758121841621,-480.0,0.00023555,3]
[385902381,1758121841631,-481.3748249,0.00023555,3]
[385902382,1758121841640,-575.77,0.00023555,3]
[385902383,1758121841649,-481.8233712,0.00023555,3]
[385902384,1758121841659,-480.0,0.00023555,3]
[385902385,1758121841668,-480.0,0.00023555,3]
[385902386,1758121841677,-480.0,0.00023555,3]
[385902387,1758121841686,-480.0,0.00023555,3]
[385902388,1758121841696,-480.0,0.00023555,3]
[385902389,1758121841705,-480.0,0.00023555,3]
[385902390,1758121841714,-316.20396491,0.00023555,3]
[385902391,1758121841724,-480.0,0.00023555,3]
[385902392,1758121841733,-500.0,0.00023573,2]
[385902393,1758121841742,-292.99311173,0.00023573,2]
[385902394,1758121841751,-637.88445015,0.00023573,2]
[385902395,1758121841760,-186.0,0.00023671,10]
[385902396,1758121841769,-582.566,0.00023704,2]
[385902397,1758121841778,-634.0,0.00023704,2]
[385902398,1758121841787,-1837.0,0.00023718,2]
[385902399,1758121841796,-252.06,0.00023727,3]
[385902400,1758121841806,-581.81081085,0.00023727,3]
[385902401,1758121841815,-481.08,0.00023727,3]
[385902402,1758121841824,-480.0,0.00023727,3]
[385902403,1758121841833,-480.0,0.00023727,3]
[385902404,1758121841843,-765.75,0.00023727,3]
[385902405,1758121841852,-1480.46979804,0.00023755,2]
[385902406,1758121841862,-480.0,0.00023798,3]
[385902407,1758121841871,-480.0,0.00023798,3]
[385902408,1758121841880,-480.0,0.00023798,3]
[385902409,1758121841890,-480.0,0.00023798,3]
[385902410,1758121841898,-480.0,0.00023798,3]
[385902411,1758121841907,-480.0,0.00023798,3]
[385902412,1758121841917,-480.0,0.00023798,3]
[385902413,1758121841926,-468.56,0.00023798,3]
[385902414,1758121841936,-603.67,0.00023798,3]
[385902415,1758121841945,-480.0,0.00023798,3]
[385902416,1758121841955,-480.0,0.00023798,3]
[385902417,1758121841964,-480.0,0.00023798,3]
[385902418,1758121841973,-480.0,0.00023798,3]
[385902419,1758121841982,-480.0,0.00023798,3]
[385902420,1758121841991,-480.0,0.00023798,3]
[385902421,1758121842000,-562.19,0.00023799,3]
[385902422,1758121842010,-315.09715624,0.00023799,3]
[385902423,1758121842019,-391.34,0.00023803,3]
[385902424,1758121842235,-587.05,0.00023803,3]
[385902425,1758121842245,-195.67,0.00023804,3]
[385902426,1758121842255,-157.03,0.00023813,3]
[385902427,1758121842264,-480.0,0.00023813,3]
[385902428,1758121842274,-216.44638852,0.00023813,3]
[385902429,1758121842287,-263.55361148,0.00023813,3]
[385902430,1758121842296,-612.77,0.00023813,3]
[385902431,1758121842306,-480.0,0.00023813,3]
[385902432,1758121842315,-535.50546771,0.00023813,3]
[385902433,1758121842325,-480.0,0.00023813,3]
[385902434,1758121842334,-464.76,0.00023813,3]
[385902435,1758121842344,-480.0,0.00023814,3]
[385902436,1758121842353,-1087.11,0.00023814,3]
[385902437,1758121842362,-480.0,0.00023814,3]
[385902438,1758121842372,-480.0,0.00023814,3]
[385902439,1758121842381,-500.0,0.00023825,2]
[385902440,1758121842390,-165.10297387,0.00023825,2]
[385902441,1758121842399,-590.33976995,0.00023825,2]
[385902442,1758121842408,-500.0,0.00023825,2]
[385902443,1758121842419,-500.0,0.00023825,2]
[385902444,1758121842429,-500.0,0.00023825,2]
[385902445,1758121842438,-500.0,0.00023825,2]
[385902446,1758121842447,-500.0,0.00023825,2]
[385902447,1758121842457,-500.0,0.00023825,2]
[385902448,1758121842466,-480.0,0.00023826,3]
[385902449,1758121842476,-480.0,0.00023826,3]
[385902450,1758121842487,-558.57,0.00023826,3]
[385902451,1758121842498,-995.19,0.00023826,3]
[385902452,1758121842507,-480.0,0.00023826,3]
[385902453,1758121842517,-480.0,0.00023826,3]
[385902454,1758121842526,-349.63,0.00023826,3]
[385902455,1758121842536,-350.17,0.00023826,3]
[385902456,1758121842545,-480.0,0.00023826,3]
[385902458,1758121842554,-583.77,0.00023826,3]
[385902460,1758121842567,-157.68,0.00023826,3]
[385902462,1758121842577,-480.0,0.00023826,3]
[385902464,1758121842587,-521.63,0.00023826,3]
[385902466,1758121842597,-543.33,0.00023826,3]
[385902468,1758121842607,-58.10155547,0.00023826,3]
[385902472,1758121842618,-151.42409559,0.00023826,3]
[385902474,1758121842627,-480.0,0.00023827,3]
[385902476,1758121842636,-567.03182798,0.00023827,3]
[385902480,1758121842645,-480.0,0.00023827,3]
[385902482,1758121842654,-480.0,0.00023827,3]
[385902484,1758121842664,-480.0,0.00023827,3]
[385902486,1758121842673,-480.0,0.00023827,3]
[385902488,1758121842683,-4263.77,0.00023827,3]
[385902490,1758121842692,-480.0,0.00023827,3]
[385902491,1758121842701,-480.0,0.00023827,3]
[385902493,1758121842710,-480.0,0.00023827,3]
[385902496,1758121842720,-177.97,0.00023827,3]
[385902498,1758121842729,-216.97699756,0.00023827,3]
[385902502,1758121842740,-263.02300244,0.00023827,3]
[385902505,1758121842750,-480.0,0.00023827,3]
[385902508,1758121842760,-480.0,0.00023828,3]
[385902511,1758121842769,-480.0,0.00023828,3]
[385902514,1758121842778,-480.0,0.00023829,3]
[385902517,1758121842787,-342.3,0.00023829,3]
[385902519,1758121842797,-232.05,0.00023829,3]
[385902522,1758121842806,-480.0,0.00023829,3]
[385902524,1758121842814,-412.61,0.00023829,3]
[385902526,1758121842823,-500.0,0.00023829,3]
[385902527,1758121842832,-480.0,0.00023829,3]
[385902529,1758121842842,-480.0,0.00023829,3]
[385902530,1758121842850,-480.0,0.00023829,3]
[385902531,1758121842859,-480.0,0.00023829,3]
[385902532,1758121842868,-481.08,0.00024001,3]
[385902533,1758121842878,-480.0,0.00024001,3]
[385902534,1758121842888,-480.0,0.00024001,3]
[385902535,1758121842898,-765.75,0.00024001,3]
[385902536,1758121842907,-1480.46979804,0.00024071,2]
[385902537,1758121842917,-272.7,0.00024072,3]
[385902538,1758121842926,-480.0,0.00024072,3]
[385902539,1758121842936,-513.32,0.00024072,3]
[385902540,1758121842945,-175.7,0.00024072,3]
[385902541,1758121842955,-480.0,0.00024072,3]
[385902542,1758121842964,-480.0,0.00024072,3]
[385902543,1758121842973,-480.0,0.00024072,3]
[385902544,1758121842982,-480.0,0.00024072,3]
[385902545,1758121842992,-480.0,0.00024072,3]
[385902546,1758121843001,-480.0,0.00024087,3]
[385902547,1758121843011,-480.0,0.00024087,3]
[385902548,1758121843020,-600.56,0.00024088,3]
[385902549,1758121843029,-1087.11,0.00024088,3]
[385902550,1758121843039,-480.0,0.00024088,3]
[385902551,1758121843048,-480.0,0.00024088,3]
[385902552,1758121843057,-480.0,0.000241,3]
[385902553,1758121843066,-480.0,0.000241,3]
[385902554,1758121843075,-558.57,0.000241,3]
[385902555,1758121843085,-995.19,0.000241,3]
[385902556,1758121843095,-480.0,0.000241,3]
[385902557,1758121843103,-480.0,0.000241,3]
[385902558,1758121843113,-229.98,0.000241,3]
[385902559,1758121843122,-583.77,0.000241,3]
[385902560,1758121843131,-480.0,0.000241,3]
[385902561,1758121843140,-436.81719952,0.000241,3]
[385902568,1758121843586,-480.0,0.00023525,3]
[385902569,1758121843596,-500.0,0.00023825,2]
[385902570,1758121843605,-84.81280048,0.000241,3]
[385902571,1758121843614,-543.33,0.000241,3]
[385902572,1758121843623,-480.0,0.00024101,3]
[385902574,1758121843632,-480.0,0.00024101,3]
[385902575,1758121843642,-480.0,0.00024101,3]
[385902577,1758121843652,-480.0,0.00024101,3]
[385902579,1758121843661,-480.0,0.00024101,3]
[385902581,1758121843671,-4263.77,0.00024101,3]
[385902583,1758121843679,-480.0,0.00024101,3]
[385902585,1758121843689,-480.0,0.00024101,3]
[385902586,1758121843698,-480.0,0.00024101,3]
[385902587,1758121843707,-480.0,0.00024101,3]
[385902588,1758121843716,-480.0,0.00024101,3]
[385902589,1758121843725,-480.0,0.00024102,3]
[385902590,1758121843735,-480.0,0.00024103,3]
[385902591,1758121843744,-177.16,0.00024103,3]
[385902592,1758121843754,-1000.0,0.00024121,2]
[385902593,1758121843763,-176.0,0.00024138,2]
[385902594,1758121843773,-338.35965681,0.00024152,2]
[385902595,1758121843782,-176.0,0.00024197,2]
[385902596,1758121843791,-160.0,0.00024244,2]
[385902597,1758121843801,-481.08,0.00024275,3]
[385902598,1758121843810,-397.5,0.00024275,3]
[385902599,1758121843820,-436.7,0.00024275,3]
[385902600,1758121843829,-765.75,0.00024275,3]
[385902601,1758121843838,-176.0,0.0002428,2]
[385902602,1758121843849,-1000.0,0.000243,2]
[385902603,1758121843858,-176.0,0.00024324,2]
[385902604,1758121843868,-379.22,0.00024346,3]
[385902605,1758121843877,-480.0,0.00024346,3]
[385902606,1758121843886,-196.6,0.00024346,3]
[385902607,1758121843896,-480.0,0.00024346,3]
[385902608,1758121843906,-480.0,0.00024346,3]
[385902609,1758121843916,-268.88,0.00024346,3]
[385902610,1758121843926,-330.63,0.00024361,3]
[385902611,1758121843935,-1087.11,0.00024362,3]
[385902612,1758121843944,-480.0,0.00024362,3]
[385902613,1758121843954,-480.0,0.00024362,3]
[385902614,1758121843964,-813.59,0.00024364,3]
[385902615,1758121843974,-480.0,0.00024374,3]
[385902616,1758121843983,-426.8,0.00024374,3]
[385902617,1758121843992,-558.57,0.00024374,3]
[385902618,1758121844001,-995.19,0.00024374,3]
[385902619,1758121844011,-480.0,0.00024374,3]
[385902620,1758121844020,-480.0,0.00024374,3]
[385902621,1758121844031,-583.77,0.00024374,3]
[385902622,1758121844040,-307.14,0.00024374,3]
[385902623,1758121844049,-521.63,0.00024374,3]
[385902624,1758121844059,-543.33,0.00024374,3]
[385902625,1758121844068,-480.0,0.00024375,3]
[385902626,1758121844077,-480.0,0.00024375,3]
[385902627,1758121844087,-480.0,0.00024375,3]
[385902628,1758121844096,-534.58,0.00024375,3]
[385902629,1758121844105,-480.0,0.00024375,3]
[385902630,1758121844114,-4263.77,0.00024375,3]
[385902631,1758121844123,-360.84,0.00024375,3]
[385902632,1758121844133,-480.0,0.00024375,3]
[385902633,1758121844142,-480.0,0.00024375,3]
[385902634,1758121844152,-480.0,0.00024375,3]
[385902635,1758121844161,-480.0,0.00024375,3]
[385902636,1758121844170,-480.0,0.00024375,3]
[385902637,1758121844179,-480.0,0.00024376,3]
[385902638,1758121844189,-480.0,0.00024377,3]
[385902639,1758121844198,-1480.46979804,0.00024386,2]
[385902640,1758121844207,-962.12,0.00024456,2]
[385902641,1758121844216,-176.0,0.00024487,2]
[385902642,1758121844225,-176.0,0.00024511,2]
[385902643,1758121844234,-481.08,0.00024549,3]
[385902644,1758121844244,-765.75,0.00024549,3]
[385902645,1758121844253,-23941.86963598,0.00024558,2]
[385902659,1758121846186,-6102.99019255,0.00024558,2]
[385902660,1758121846197,-21732.85902472,0.00024558,2]
[385902661,1758121846207,-176.0,0.00024561,2]
[385902662,1758121846216,-500.0,0.00024573,2]
[385902663,1758121846225,-500.0,0.00024573,2]
[385902664,1758121846234,-500.0,0.00024573,2]
[385902665,1758121846243,-664.0,0.00024575,2]
[385902666,1758121846252,-257.22,0.0002462,3]
[385902667,1758121846261,-501.17,0.0002462,3]
[385902668,1758121846271,-480.0,0.0002462,3]
[385902669,1758121846280,-1087.11,0.00024636,3]
[385902670,1758121846289,-480.0,0.00024636,3]
[385902671,1758121846298,-480.0,0.00024636,3]
[385902672,1758121846308,-2964.70012476,0.00024636,2]
[385902673,1758121846317,-480.0,0.00024648,3]
[385902674,1758121846326,-558.57,0.00024648,3]
[385902675,1758121846336,-663.24563975,0.00024648,3]
[385902687,1758121876037,155.69,0.00020572,2]
[385902688,1758121890545,237.95,0.00020384,3]
[385902689,1758121966074,153.71,0.00020556,2]
[385902690,1758121974627,2269.90193709,0.00030308,50]
[385902691,1758121994006,-307.41,0.00021535,2]
[385902692,1758121994036,-207.0,0.00022027,6]
[385902693,1758121994066,-1351.73789738,0.00022027,2]
[385902694,1758121994097,-461.12,0.00022514,2]
[385902695,1758121994125,-501.52379241,0.00023173,2]
[385902696,1758121994155,-500.0,0.00023173,2]
[385902697,1758121994184,-500.0,0.00023173,2]
[385902698,1758121994214,-500.0,0.00023173,2]
[385902699,1758121994246,-500.0,0.00023173,2]
[385902700,1758121994276,-42.42662042,0.00023178,2]
[385902701,1758121994560,-257.57337958,0.00023178,2]
[385902702,1758121994777,-9074.31662042,0.00023179,2]
[385902703,1758121994806,-500.0,0.00023173,2]
[385902704,1758121994816,-9500.01,0.00023179,2]
[385902705,1758121994835,-10000.01,0.00023179,2]
[385902706,1758121994855,-10000.01,0.00023179,2]
[385902707,1758122004059,-500.0,0.00023173,2]
[385902708,1758122004090,-500.0,0.00023173,2]
[385902709,1758122004142,-8000.01,0.00023179,2]
[385902710,1758122044096,-3425.64337958,0.00023179,2]
[385902711,1758122044130,-480.0,0.00023179,3]
[385902712,1758122044163,-354.67,0.00023179,3]
[385902713,1758122044194,-480.0,0.00023179,3]
[385902714,1758122044226,-232.81324084,0.00023179,3]
[385902715,1758122044322,-53.75675916,0.00023179,3]
[385902716,1758122053216,150.0,0.00020561,2]
[385902717,1758122068059,9769.39328835,0.00028,30]
[385902721,1758122129328,-284.97,0.0002154,2]
[385902722,1758122129361,-427.46,0.00022519,2]
[385902723,1758122129392,-173.03132166,0.00023173,2]
[385902724,1758122129422,-500.0,0.00023173,2]
[385902725,1758122129453,-300.0,0.00023178,2]
[385902726,1758122129483,-300.0,0.00023178,2]
[385902727,1758122129514,-300.0,0.00023178,2]
[385902728,1758122129545,-300.0,0.00023178,2]
[385902729,1758122129577,-1200.0,0.00023178,2]
[385902730,1758122129612,-480.0,0.00023179,3]
[385902731,1758122129643,-500.0,0.00023179,3]
[385902732,1758122129850,-469.08735668,0.00023179,3]
[385902739,1758122199552,-150.0,0.00021525,2]
[385902740,1758122199586,-500.0,0.000216,2]
[385902741,1758122199619,-225.992231,0.00022245,2]
[385902742,1758122199651,-281.16,0.0002255,2]
[385902743,1758122199687,-300.0,0.00023178,2]
[385902744,1758122199718,-2858.89005157,0.00023178,2]
[385902745,1758122199750,-10.91264332,0.00023179,3]
[385902746,1758122199780,-480.0,0.00023179,3]
[385902747,1758122199811,-78.53707508,0.00023179,3]
[385902748,1758122199971,-229.02599806,0.00023179,3]
[385902749,1758122311646,-311.95,0.00021452,4]
[385902750,1758122311686,-9376.11,0.00022228,2]
[385902751,1758122311793,-2749.4910247,0.00022228,2]
[385902752,1758122311820,-4501.0279506,0.00022228,2]
[385902753,1758122315045,150.0,0.00020565,2]
[385902754,1758122319617,-252.05,0.00021544,2]
[385902755,1758122319648,-927.2439841,0.00022253,2]
[385902756,1758122319680,-378.07,0.00022523,2]
[385902757,1758122319714,-170.0,0.00023096,9]
[385902758,1758122319745,-1200.0,0.00023178,2]
[385902759,1758122319775,-300.0,0.00023178,2]
[385902760,1758122319806,-480.0,0.00023178,3]
[385902761,1758122319835,-480.0,0.00023179,3]
[385902762,1758122319866,-480.0,0.00023179,3]
[385902763,1758122319896,-185.2820318,0.00023179,3]
[385902764,1758122320054,-294.7179682,0.00023179,3]
[385902766,1758122344710,-10000.01,0.00023146,2]
[385902769,1758122414805,-150.0,0.0002165,2]
[385902770,1758122414836,-232.19,0.00022681,2]
[385902771,1758122414868,-2322.5568526,0.00023146,2]
[385902772,1758122414899,-300.0,0.00023178,2]
[385902773,1758122414930,-1200.0,0.00023178,2]
[385902774,1758122414960,-548.21,0.00023179,3]
[385902775,1758122414991,-14.0962948,0.00023179,3]
[385902776,1758122415209,-465.9037052,0.00023179,3]
[385902779,1758122434643,2106.13,0.00028,30]
[385902780,1758122434829,-3849.63161758,0.0002165,2]
[385902781,1758122434855,-2300.74676484,0.0002165,2]
[385902783,1758122494898,-150.0,0.00021652,2]
[385902784,1758122494932,-745.307642,0.00022408,2]
[385902785,1758122494967,-462.57224515,0.00022483,2]
[385902786,1758122495002,-231.28612257,0.00022483,2]
[385902787,1758122495038,-222.46,0.00022683,2]
[385902788,1758122495074,-300.0,0.00023178,2]
[385902789,1758122495114,-664.28,0.00023178,3]
[385902790,1758122495151,-1946.66918541,0.00023178,2]
[385902791,1758122495313,-554.85960974,0.00023178,2]
[385902793,1758122539778,200.0,0.00020356,3]
[385902794,1758122545575,159.0,0.000211,4]
[385902795,1758122546181,159.0,0.000211,4]
[385902796,1758122550812,159.0,0.000211,4]
[385902797,1758122575775,159.0,0.00028,32]
[385902798,1758122581508,159.0,0.00028,32]
[385902799,1758122595585,159.14,0.00028,32]
[385902800,1758122640183,-500.0,0.000225,2]